bitfinex/quotes_SOLUSD_20241220
["timestamp","ask_amount","ask_price","bid_price","bid_amount"]
[1734718512992,16.54372783,190.6,190.53,137.34372783]
[1734718513291,16.54372783,190.62,190.55,16.54372783]
[1734718513594,16.54372783,190.63,190.56,16.54372783]
[1734718513815,16.54372783,190.57,190.54,120.8]
[1734718514099,16.54372783,190.55,190.49,120.8]
[1734718514272,16.54372783,190.5,190.42,122.3445]
[1734718514466,16.54372783,190.5,190.44,120.8]
[1734718514664,16.54372783,190.52,190.44,16.54372783]
[1734718514864,16.54372783,190.5,190.44,120.8]
[1734718515092,16.54372783,190.5,190.42,138.88822783]
[1734718515689,16.54372783,190.5,190.43,0.12549]
[1734718515894,16.54372783,190.48,190.42,122.3445]
[1734718517092,16.54372783,190.46,190.42,1.5445]
[1734718517392,16.54372783,190.46,190.41,127.0686]
[1734718517966,16.54372783,190.44,190.38,120.8]
[1734718518496,16.54372783,190.4,190.37,121.4855337]
[1734718518683,16.54372783,190.4,190.37,0.6855337]
[1734718519275,16.54372783,190.38,190.37,0.6855337]
[1734718520969,26.52086781,190.38,190.37,0.6855337]
[1734718522593,26.52086781,190.45,190.37,0.6855337]
[1734718522782,26.52086781,190.45,190.38,26.52086781]
[1734718522975,26.52086781,190.44,190.37,27.20640151]
[1734718523375,26.52086781,190.46,190.4,26.52086781]
[1734718523979,26.52086781,190.48,190.41,26.52086781]
[1734718524403,26.52086781,190.48,190.39,26.52086781]
[1734718525997,26.52086781,190.48,190.39,27.308406]
[1734718527066,26.52086781,190.48,190.39,148.108406]
[1734718527401,26.52086781,190.48,190.39,147.32086781]
[1734718527580,13.1233,190.5,190.41,120.8]
[1734718527785,26.52086781,190.42,190.38,122.4212]
[1734718527987,26.52086781,190.44,190.38,1.6212]
[1734718528834,26.52086781,190.39,190.37,0.6855337]
[1734718529176,26.52086781,190.41,190.37,0.6855337]
[1734718529390,26.52086781,190.39,190.37,0.6855337]
[1734718532902,26.52086781,190.43,190.37,0.6855337]
[1734718534303,26.52086781,190.41,190.37,0.6855337]
[1734718534497,46.52086781,190.38,190.37,0.6855337]
[1734718535110,26.52086781,190.38,190.37,0.6855337]
[1734718535691,13.53524789,190.44,190.37,0.6855337]
[1734718535692,26.52086781,190.42,190.37,0.6855337]
[1734718536711,26.52086781,190.44,190.37,121.4855337]
[1734718537284,26.52086781,190.44,190.38,26.52086781]
[1734718538012,26.52086781,190.46,190.39,147.32086781]
[1734718538191,26.52086781,190.46,190.39,120.8]
[1734718539312,26.52086781,190.45,190.39,120.8]
[1734718539816,26.52086781,190.41,190.24,129.0135317]
[1734718540118,26.52086781,190.29,190.24,8.2135317]
[1734718540308,26.52086781,190.29,190.25,8.2135317]
[1734718540930,26.52086781,190.31,190.25,8.2135317]
[1734718541417,26.52086781,190.33,190.25,129.0135317]
[1734718541619,26.52086781,190.33,190.25,120.8]
[1734718542928,26.52086781,190.33,190.18,6.0926]
[1734718542929,26.52086781,190.27,190.18,6.0926]
[1734718543222,26.52086781,190.22,190.18,6.0926]
[1734718544405,26.52086781,190.22,190.17,0.6855337]
[1734718544406,26.52086781,190.2,190.17,0.6855337]
[1734718544929,26.52086781,190.18,190.17,0.6855337]
[1734718548031,20.0,190.14,190.06,1.5775]
[1734718548226,26.52086781,190.07,190.06,1.5775]
[1734718554129,26.52086781,190.08,190.06,1.5775]
[1734718554446,26.52086781,190.09,190.06,1.5775]
[1734718554615,26.52086781,190.1,190.06,122.3775]
[1734718554815,26.52086781,190.1,190.06,1.5775]
[1734718555231,26.52086781,190.09,190.06,1.5775]
[1734718555427,26.52086781,190.07,190.06,1.5775]
[1734718555633,26.52086781,190.07,190.06,0.0001]
[1734718556534,26.52086781,190.07,189.98,0.6855337]
[1734718556728,26.52086781,190.01,189.98,0.6855337]
[1734718557616,26.52086781,190.05,189.98,121.4855337]
[1734718557815,26.52086781,190.1,189.98,121.4855337]
[1734718557816,26.52086781,190.03,189.98,121.4855337]
[1734718558017,26.52086781,189.99,189.98,0.6855337]
[1734718558219,20.0,189.96,189.81,6.3906]
[1734718558424,26.52086781,189.88,189.81,127.1906]
[1734718558722,26.52086781,189.9,189.81,127.1906]
[1734718558912,26.52086781,189.9,189.82,27.31075807]
[1734718559116,26.52086781,189.9,189.82,148.11075807]
[1734718559334,26.52086781,189.9,189.82,120.8]
[1734718559640,26.52086781,189.88,189.82,120.8]
[1734718559827,26.52086781,189.9,189.82,147.32086781]
[1734718560023,26.52086781,189.88,189.78,0.6855337]
[1734718560348,21.5027,189.97,189.78,0.6855337]
[1734718560349,26.52086781,189.82,189.78,0.6855337]
[1734718560551,26.52086781,189.84,189.78,0.6855337]
[1734718560754,26.52086781,189.86,189.78,27.99647905]
[1734718560933,26.52086781,189.86,189.78,148.79647905]
[1734718561121,26.52086781,189.88,189.8,26.52086781]
[1734718561320,26.52086781,189.88,189.8,27.31079951]
[1734718561547,26.52086781,189.88,189.81,0.12549]
[1734718561863,26.52086781,189.92,189.84,26.52086781]
[1734718562155,26.52086781,189.9,189.83,0.78977532]
[1734718562357,26.52086781,189.94,189.86,26.52086781]
[1734718562519,26.52086781,189.92,189.86,0.78968919]
[1734718562721,26.52086781,189.92,189.86,121.58968919]
[1734718562921,26.52086781,189.92,189.86,120.8]
[1734718566959,26.52086781,189.88,189.84,144.576884]
[1734718567255,26.52086781,189.85,189.8,120.8]
[1734718567462,26.52086781,189.86,189.81,121.58993247]
[1734718567628,26.52086781,189.88,189.81,120.8]
[1734718567827,26.52086781,189.9,189.82,148.11068886]
[1734718568028,26.52086781,189.89,189.82,120.8]
[1734718568541,26.52086781,189.89,189.81,26.52086781]
[1734718568542,26.52086781,189.87,189.83,144.576884]
[1734718568739,26.52086781,189.88,189.83,144.576884]
[1734718569047,26.52086781,189.87,189.83,144.576884]
[1734718570438,26.52086781,189.88,189.83,144.576884]
[1734718571133,26.52086781,189.89,189.83,144.576884]
[1734718571349,26.52086781,189.88,189.83,144.576884]
[1734718571556,26.52086781,189.89,189.83,144.576884]
[1734718571770,26.52086781,189.91,189.85,7.8025]
[1734718572063,13.1585,190.0,189.88,120.8]
[1734718572222,19.46354974,190.0,189.88,120.8]
[1734718572562,13.1585,190.0,189.88,120.8]
[1734718572849,13.1585,190.0,189.85,152.379384]
[1734718573050,26.52086781,190.01,189.93,147.32086781]
[1734718573251,26.52086781,190.02,189.95,50.29775181]
[1734718573442,26.52086781,190.02,189.96,7.09509953]
[1734718573635,6.5449,190.11,189.97,148.85116781]
[1734718573636,26.52086781,190.05,189.97,148.85116781]
[1734718573858,26.52086781,190.05,189.98,27.3101284]
[1734718574132,26.52086781,190.04,189.98,0.78926059]
[1734718575663,26.52086781,190.05,189.98,27.3101284]
[1734718576656,26.52086781,190.05,189.98,0.78926059]
[1734718576959,26.52086781,190.01,189.97,1.5303]
[1734718577135,26.52086781,190.0,189.96,6.3058]
[1734718577530,26.52086781,190.01,189.96,6.3058]
[1734718577767,26.52086781,190.03,189.96,6.3058]
[1734718577971,26.52086781,190.04,189.96,33.61599481]
[1734718578273,26.52086781,189.97,189.92,1.6588]
[1734718578566,26.52086781,189.94,189.87,6.0714]
[1734718578737,26.52086781,189.92,189.87,6.0714]
[1734718579537,26.52086781,189.91,189.87,6.0714]
[1734718579732,26.52086781,189.92,189.87,6.0714]
[1734718580164,26.52086781,189.93,189.87,6.0714]
[1734718580468,26.52086781,189.94,189.87,32.59226781]
[1734718580965,26.52086781,189.94,189.86,27.31062496]
[1734718582133,26.52086781,189.94,189.87,26.52086781]
[1734718582333,26.52086781,189.94,189.86,50.29775181]
[1734718582744,26.52086781,189.91,189.84,147.32086781]
[1734718583141,26.52086781,189.92,189.84,147.32086781]
[1734718583464,26.52086781,189.93,189.85,26.52086781]
[1734718583679,26.52086781,189.92,189.84,147.32086781]
[1734718583971,26.52086781,189.93,189.86,26.52086781]
[1734718584170,26.52086781,189.93,189.85,26.52086781]
[1734718584870,26.52086781,189.94,189.86,26.52086781]
[1734718585072,26.52086781,190.0,189.87,171.88738629]
[1734718585073,26.52086781,189.95,189.87,171.88738629]
[1734718585285,26.52086781,189.94,189.87,171.09775181]
[1734718586087,26.52086781,189.95,189.87,171.09775181]
[1734718586291,26.52086781,189.96,189.88,26.52086781]
[1734718586447,26.52086781,189.99,189.92,26.52086781]
[1734718586658,26.52086781,189.99,189.92,32.60836781]
[1734718586961,26.52086781,190.01,189.94,26.52086781]
[1734718587686,26.52086781,190.03,189.95,26.52086781]
[1734718588370,26.52086781,190.04,189.96,26.52086781]
[1734718588571,26.52086781,190.05,189.97,26.52086781]
[1734718588761,26.52086781,190.05,189.97,27.31011876]
[1734718588963,26.52086781,190.05,189.97,121.58925095]
[1734718589167,26.52086781,190.07,189.99,26.52086781]
[1734718589364,26.52086781,190.08,190.0,27.31005881]
[1734718589856,26.52086781,190.04,189.97,26.52086781]
[1734718590069,26.52086781,190.04,189.97,0.7892802]
[1734718590276,26.52086781,190.04,189.97,27.31014801]
[1734718591071,26.52086781,190.02,189.95,147.32086781]
[1734718591301,26.52086781,189.98,189.92,7.7496]
[1734718591578,26.52086781,189.95,189.88,153.38546781]
[1734718592673,26.52086781,189.95,189.88,126.8646]
[1734718593073,38.96253253,189.95,189.88,126.8646]
[1734718593281,38.96253253,189.95,189.88,6.0646]
[1734718594053,38.96253253,189.92,189.83,159.76253253]
[1734718594246,38.96253253,189.92,189.85,38.96253253]
[1734718594646,38.96253253,189.94,189.87,38.96253253]
[1734718595075,38.96253253,189.9,189.82,45.13113253]
[1734718595275,38.96253253,189.9,189.83,0.12549]
[1734718595576,38.96253253,189.94,189.86,38.96253253]
[1734718596271,38.96253253,189.92,189.85,23.776884]
[1734718596689,38.96253253,189.94,189.86,38.96253253]
[1734718596885,38.96253253,189.95,189.87,62.73941653]
[1734718597083,38.96253253,189.95,189.87,38.96253253]
[1734718598482,38.96253253,189.96,189.88,38.96253253]
[1734718598886,38.96253253,189.97,189.91,38.96253253]
[1734718599265,38.96253253,189.99,189.91,38.96253253]
[1734718601264,38.96253253,189.98,189.9,38.96253253]
[1734718601476,6.0117,190.02,189.84,120.8]
[1734718601477,38.96253253,189.92,189.84,120.8]
[1734718601790,38.96253253,189.91,189.84,38.96253253]
[1734718605393,38.96253253,189.92,189.84,38.96253253]
[1734718606481,2.14779309,190.02,189.88,38.96253253]
[1734718606686,6.5555,190.09,190.01,38.96253253]
[1734718608479,38.96253253,190.1,190.01,38.96253253]
[1734718608769,38.96253253,190.1,190.03,38.96253253]
[1734718609806,38.96253253,190.1,190.01,38.96253253]
[1734718610162,38.96253253,190.04,189.98,0.78918622]
[1734718610369,38.96253253,190.04,189.97,38.96253253]
[1734718610671,38.96253253,190.05,189.97,38.96253253]
[1734718611609,38.96253253,190.06,189.98,38.96253253]
[1734718612193,38.96253253,190.04,189.96,38.96253253]
[1734718612389,38.96253253,190.0,189.92,38.96253253]
[1734718613096,23.96567668,190.01,189.93,23.96567668]
[1734718613689,37.11857668,190.08,189.89,7.8405]
[1734718613690,23.96567668,189.97,189.91,23.96567668]
[1734718614197,23.96567668,189.97,189.89,31.80617668]
[1734718614405,23.96567668,189.92,189.84,165.65337668]
[1734718614701,23.96567668,189.88,189.81,8.16760424]
[1734718614877,23.96567668,189.89,189.81,32.13328092]
[1734718615401,23.96567668,189.89,189.81,23.96567668]
[1734718615581,23.96567668,189.9,189.82,23.96567668]
[1734718615780,23.96567668,189.94,189.85,23.96567668]
[1734718615982,23.96567668,189.95,189.88,23.96567668]
[1734718616188,23.96567668,189.94,189.86,23.96567668]
[1734718616405,23.96567668,189.91,189.83,23.96567668]
[1734718616898,23.96567668,189.9,189.83,23.96567668]
[1734718617805,23.96567668,189.91,189.83,23.96567668]
[1734718618101,23.96567668,189.91,189.84,23.96567668]
[1734718618294,23.96567668,189.92,189.84,23.96567668]
[1734718618493,23.96567668,189.94,189.87,23.96567668]
[1734718618700,23.96567668,189.92,189.82,0.78983888]
[1734718618878,23.96567668,189.9,189.83,23.96567668]
[1734718619077,23.96567668,189.9,189.82,23.96567668]
[1734718619397,23.96567668,189.89,189.82,23.96567668]
[1734718619578,23.96567668,189.89,189.81,23.96567668]
[1734718619790,23.96567668,189.88,189.8,23.96567668]
[1734718620105,23.96567668,189.88,189.81,23.96567668]
[1734718620303,6.5568,189.93,189.79,128.5188]
[1734718620489,23.96567668,189.96,189.88,23.96567668]
[1734718620692,23.96567668,189.94,189.87,23.96567668]
[1734718620882,23.96567668,189.94,189.86,23.96567668]
[1734718621085,7.8812,189.98,189.8,13.1717]
[1734718621286,7.8812,189.98,189.87,23.96567668]
[1734718621480,23.96567668,189.95,189.87,23.96567668]
[1734718621679,21.0406,189.98,189.9,23.96567668]
[1734718621680,31.84687668,189.98,189.9,23.96567668]
[1734718622313,23.96567668,189.96,189.88,23.96567668]
[1734718622822,23.96567668,189.95,189.87,23.96567668]
[1734718622988,23.96567668,189.94,189.87,23.96567668]
[1734718623185,43.96567668,189.95,189.87,23.96567668]
[1734718623688,23.96567668,189.96,189.89,23.96567668]
[1734718624211,23.96567668,189.96,189.84,13.1689]
[1734718624212,23.96567668,190.05,189.94,23.96567668]
[1734718624426,23.96567668,190.03,189.94,23.96567668]
[1734718624596,23.96567668,190.03,189.96,23.96567668]
[1734718624917,23.96567668,190.05,189.96,23.96567668]
[1734718625493,23.96567668,190.07,190.0,23.96567668]
[1734718627694,25.61657668,190.1,190.02,23.96567668]
[1734718628829,25.61657668,190.1,189.96,133.9606]
[1734718628830,23.96567668,190.05,189.96,23.96567668]
[1734718629121,23.96567668,190.01,189.93,23.96567668]
[1734718629420,23.96567668,189.97,189.9,32.24797668]
[1734718629623,23.96567668,189.99,189.91,23.96567668]
[1734718629805,23.96567668,189.99,189.92,23.96567668]
[1734718630318,23.96567668,190.01,189.94,23.96567668]
[1734718630635,23.96567668,190.03,189.96,23.96567668]
[1734718631127,23.96567668,190.03,189.95,23.96567668]
[1734718632223,23.96567668,190.03,189.96,23.96567668]
[1734718633217,23.96567668,190.02,189.94,23.96567668]
[1734718633527,23.96567668,190.03,189.95,23.96567668]
[1734718634904,23.96567668,190.0,189.93,23.96567668]
[1734718635105,23.96567668,189.96,189.91,120.8]
[1734718635311,23.96567668,189.95,189.87,23.96567668]
[1734718635511,23.96567668,189.95,189.88,23.96567668]
[1734718635716,23.96567668,189.97,189.86,13.1675]
[1734718636024,23.96567668,190.0,189.92,23.96567668]
[1734718636733,273.96567668,190.0,189.92,23.96567668]
[1734718636905,250.0,190.0,189.93,23.96567668]
[1734718637722,250.0,190.0,189.95,23.96567668]
[1734718638111,250.0,190.0,189.93,23.96567668]
[1734718638603,250.0,190.0,189.94,23.96567668]
[1734718638811,273.96567668,190.0,189.93,23.96567668]
[1734718639024,23.96567668,189.99,189.92,23.96567668]
[1734718639604,273.96567668,190.0,189.92,23.96567668]
[1734718639800,250.0,190.0,189.93,23.96567668]
[1734718640823,250.0,190.0,189.95,23.96567668]
[1734718641337,250.0,190.0,189.91,0.78950578]
[1734718641338,250.0,190.0,189.96,23.96567668]
[1734718641931,250.0,190.0,189.95,23.96567668]
[1734718642615,250.0,190.0,189.96,23.96567668]
[1734718645136,23.96567668,189.99,189.9,120.8]
[1734718645310,23.96567668,189.99,189.9,144.76567668]
[1734718645512,23.96567668,189.99,189.92,23.96567668]
[1734718645708,250.0,190.0,189.94,23.96567668]
[1734718645913,250.0,190.0,189.9,157.92997668]
[1734718645914,250.0,190.0,189.96,23.96567668]
[1734718646332,250.0,190.0,189.98,23.96567668]
[1734718646520,250.0,190.0,189.9,13.1643]
[1734718646823,23.96567668,189.97,189.89,23.96567668]
[1734718647023,23.96567668,189.95,189.89,23.96567668]
[1734718647218,23.96567668,189.93,189.85,40.33178092]
[1734718647441,250.0,189.9,189.85,40.33178092]
[1734718647921,250.0,189.9,189.86,23.96567668]
[1734718648341,250.0,189.9,189.87,23.96567668]
[1734718648651,250.0,189.9,189.88,23.96567668]
[1734718650419,250.0,189.9,189.87,23.96567668]
[1734718651446,250.0,189.9,189.88,23.96567668]
[1734718651758,250.0,189.9,189.89,23.96567668]
[1734718655271,241.75464842,189.9,189.89,71.83372736]
[1734718655726,57.83823108,189.9,189.89,71.83372736]
[1734718655928,23.329011,189.9,189.89,192.63372736]
[1734718656159,23.96567668,190.07,189.92,0.12549]
[1734718656369,23.96567668,190.08,190.01,23.96567668]
[1734718656540,31.69957668,190.09,190.01,23.96567668]
[1734718656741,23.96567668,190.07,190.0,23.96567668]
[1734718657139,23.96567668,190.08,190.01,23.96567668]
[1734718658059,23.96567668,190.07,190.0,23.96567668]
[1734718658742,23.96567668,190.08,190.01,23.96567668]
[1734718659134,23.96567668,190.07,190.0,23.96567668]
[1734718659666,23.96567668,190.08,190.01,23.96567668]
[1734718661471,23.96567668,190.09,190.02,23.96567668]
[1734718661657,8.097,190.14,189.97,24.56614787]
[1734718661658,23.96567668,190.13,190.06,23.96567668]
[1734718662561,23.96567668,190.17,190.1,23.96567668]
[1734718662773,23.96567668,190.14,190.07,23.96567668]
[1734718662943,23.96567668,190.08,190.01,23.96567668]
[1734718663144,37.11177668,190.17,189.96,130.93156521]
[1734718663349,37.11177668,190.17,189.96,8.0007]
[1734718663648,6.5841,190.14,189.91,142.0944]
[1734718663860,6.5841,190.14,189.92,0.12549]
[1734718664060,20.0,190.11,189.92,0.12549]
[1734718664248,20.0,190.11,189.92,0.91483146]
[1734718664652,23.96567668,190.06,189.98,23.96567668]
[1734718664854,23.96567668,190.06,189.99,23.96567668]
[1734718665654,23.96567668,190.05,189.98,23.96567668]
[1734718666049,23.96567668,190.04,189.97,168.54256068]
[1734718666374,23.96567668,190.03,189.96,157.92567668]
[1734718666546,23.96567668,190.02,189.96,13.16]
[1734718666748,23.96567668,190.03,189.96,37.12567668]
[1734718667071,23.96567668,190.05,189.97,23.96567668]
[1734718667380,23.96567668,190.0,189.93,157.92837668]
[1734718667673,23.96567668,189.97,189.91,8.131]
[1734718667873,23.96567668,189.99,189.91,32.09667668]
[1734718668175,23.96567668,190.02,189.94,23.96567668]
[1734718668348,23.96567668,190.03,189.95,23.96567668]
[1734718668550,23.96567668,190.0,189.93,144.76567668]
[1734718669151,23.96567668,190.01,189.94,23.96567668]
[1734718669448,23.96567668,190.02,189.94,23.96567668]
[1734718670775,23.96567668,190.0,189.93,120.8]
[1734718670952,23.96567668,189.98,189.91,8.131]
[1734718671149,23.96567668,189.94,189.87,23.96567668]
[1734718671753,23.96567668,189.97,189.9,23.96567668]
[1734718673379,23.96567668,189.96,189.89,23.96567668]
[1734718673548,23.96567668,189.96,189.88,23.96567668]
[1734718673745,23.96567668,189.94,189.87,23.96567668]
[1734718673950,23.96567668,189.94,189.85,127.438]
[1734718673951,23.96567668,189.9,189.85,6.638]
[1734718674158,23.96567668,189.89,189.82,23.96567668]
[1734718674449,13.1592,189.98,189.79,19.8098]
[1734718674450,23.96567668,189.85,189.79,6.638]
[1734718674760,23.96567668,189.87,189.79,30.60367668]
[1734718675156,23.96567668,189.89,189.81,23.96567668]
[1734718675561,23.96567668,189.91,189.83,23.96567668]
[1734718675764,23.96567668,189.92,189.84,23.96567668]
[1734718675974,23.96567668,189.91,189.84,23.96567668]
[1734718676275,23.96567668,189.92,189.85,23.96567668]
[1734718677168,23.96567668,189.88,189.81,157.93597668]
[1734718677352,23.96567668,189.86,189.79,6.638]
[1734718677678,23.96567668,189.85,189.79,6.638]
[1734718677882,23.96567668,189.85,189.78,0.6855337]
[1734718678064,23.96567668,189.84,189.78,0.6855337]
[1734718678378,23.96567668,189.89,189.81,23.96567668]
[1734718678572,23.96567668,189.9,189.82,23.96567668]
[1734718679881,23.96567668,189.92,189.84,23.96567668]
[1734718680066,23.96567668,189.91,189.83,23.96567668]
[1734718680857,23.96567668,189.92,189.84,23.96567668]
[1734718681065,23.96567668,189.92,189.85,23.96567668]
[1734718681672,23.96567668,189.94,189.86,23.96567668]
[1734718681876,6.4419,190.03,189.92,23.96567668]
[1734718682082,6.4419,190.03,189.89,120.8]
[1734718682083,23.96567668,190.01,189.93,23.96567668]
[1734718682257,13.1565,190.02,189.86,128.6169]
[1734718682653,6.4419,190.03,189.89,0.12549]
[1734718682851,23.96567668,190.02,189.95,23.96567668]
[1734718683058,23.96567668,190.04,189.96,23.96567668]
[1734718683267,6.5104,190.13,189.98,6.4026]
[1734718683466,23.96567668,190.08,190.01,23.96567668]
[1734718683873,23.96567668,190.1,190.03,23.96567668]
[1734718684577,23.96567668,190.11,190.04,23.902374]
[1734718684783,23.96567668,190.14,190.07,23.96567668]
[1734718685280,6.6343,190.18,190.1,23.96567668]
[1734718685281,23.96567668,190.17,190.1,23.96567668]
[1734718685674,23.96567668,190.17,190.02,23.776884]
[1734718685675,30.62847668,190.11,189.95,21.062821]
[1734718685874,23.96567668,190.03,189.95,144.76567668]
[1734718686077,23.96567668,190.05,189.97,23.96567668]
[1734718687087,23.96567668,190.03,189.95,152.59147668]
[1734718687472,23.96567668,190.05,189.95,152.59147668]
[1734718687862,23.96567668,190.07,189.99,23.96567668]
[1734718688077,23.96567668,190.07,189.99,144.76567668]
[1734718689188,23.96567668,190.09,190.01,23.96567668]
[1734718689875,23.96567668,190.07,189.99,144.76567668]
[1734718691283,23.96567668,190.07,189.99,120.8]
[1734718691502,23.96567668,190.07,189.99,144.76567668]
[1734718694196,23.96567668,190.09,190.01,23.96567668]
[1734718695863,23.96567668,190.07,189.99,144.76567668]
[1734718696191,14.7408,190.15,189.97,144.76567668]
[1734718696192,23.96567668,190.05,189.97,144.76567668]
[1734718696380,23.96567668,190.03,189.97,120.8]
[1734718696578,23.96567668,190.04,189.97,120.8]
[1734718696769,23.96567668,190.04,189.97,144.76567668]
[1734718698079,23.96567668,190.06,189.97,23.96567668]
[1734718698284,23.96567668,190.08,190.01,23.96567668]
[1734718698596,23.96567668,190.1,190.01,23.96567668]
[1734718698977,23.96567668,190.08,190.01,144.76567668]
[1734718699796,23.96567668,190.08,190.01,120.8]
[1734718699993,23.96567668,190.04,189.97,23.96567668]
[1734718702577,23.96567668,190.06,189.97,23.96567668]
[1734718702772,23.96567668,190.06,189.99,23.96567668]
[1734718702994,23.96567668,190.08,189.99,23.96567668]
[1734718703185,23.96567668,190.06,189.99,23.96567668]
[1734718703388,23.96567668,190.08,189.99,144.76567668]
[1734718704299,23.96567668,190.06,189.99,23.96567668]
[1734718706297,23.96567668,190.08,189.99,23.96567668]
[1734718708084,23.96567668,190.08,190.01,23.96567668]
[1734718708396,23.96567668,190.18,190.07,23.96567668]
[1734718708594,23.96567668,190.18,190.1,23.96567668]
[1734718709202,23.96567668,190.2,190.1,23.96567668]
[1734718709504,23.96567668,190.2,190.12,23.96567668]
[1734718709675,7.99533031,190.37,190.16,23.96567668]
[1734718709676,23.96567668,190.24,190.16,23.96567668]
[1734718710607,23.96567668,190.24,190.18,23.96567668]
[1734718710905,23.96567668,190.26,190.18,23.96567668]
[1734718711198,23.96567668,190.24,190.16,23.96567668]
[1734718712304,23.96567668,190.25,190.18,23.96567668]
[1734718713007,23.96567668,190.24,190.16,23.96567668]
[1734718713198,23.96567668,190.23,190.15,30.22717668]
[1734718713508,23.96567668,190.24,190.17,23.96567668]
[1734718714692,23.96567668,190.24,190.16,23.96567668]
[1734718715282,23.96567668,190.26,190.18,23.96567668]
[1734718715482,23.96567668,190.27,190.19,23.96567668]
[1734718715682,23.96567668,190.27,190.2,23.96567668]
[1734718716408,23.96567668,190.28,190.21,23.96567668]
[1734718716603,1.6144,190.32,190.22,23.96567668]
[1734718716604,23.96567668,190.29,190.22,23.96567668]
[1734718716806,23.96567668,190.3,190.23,23.96567668]
[1734718717009,23.96567668,190.31,190.24,23.96567668]
[1734718717381,23.96567668,190.31,190.23,23.96567668]
[1734718717700,23.96567668,190.31,190.24,23.96567668]
[1734718718106,23.96567668,190.32,190.25,23.96567668]
[1734718718305,23.96567668,190.3,190.23,30.07867668]
[1734718718487,23.96567668,190.32,190.24,23.96567668]
[1734718718987,13.1309,190.39,190.26,23.96567668]
[1734718718988,23.96567668,190.33,190.26,23.96567668]
[1734718720005,23.96567668,190.34,190.27,23.96567668]
[1734718720225,23.96567668,190.35,190.28,23.96567668]
[1734718720400,23.96567668,190.37,190.29,23.96567668]
[1734718720706,6.5993,190.42,190.3,23.96567668]
[1734718720707,23.96567668,190.38,190.3,23.96567668]
[1734718720889,23.96567668,190.38,190.31,23.96567668]
[1734718721096,23.96567668,190.38,190.3,23.776884]
[1734718721097,23.96567668,190.37,190.3,47.74256068]
[1734718721411,23.96567668,190.35,190.28,23.96567668]
[1734718721795,23.96567668,190.35,190.27,47.86805068]
[1734718722002,23.96567668,190.33,190.26,25.52247668]
[1734718722196,23.96567668,190.31,190.26,1.5568]
[1734718722999,23.96567668,190.29,190.23,6.113]
[1734718723208,23.96567668,190.28,190.23,6.113]
[1734718723521,23.96567668,190.27,190.23,6.113]
[1734718723701,23.96567668,190.27,190.2,120.8]
[1734718723904,23.96567668,190.26,190.18,154.91591336]
[1734718724081,23.96567668,190.27,190.19,37.11027668]
[1734718724483,23.96567668,190.26,190.19,13.1446]
[1734718724715,23.96567668,190.25,190.19,13.1446]
[1734718725315,1.5581,190.33,190.15,147.095]
[1734718725316,23.96567668,190.21,190.15,120.8]
[1734718725615,23.96567668,190.2,190.13,8.0723]
[1734718725784,23.96567668,190.18,190.13,8.0723]
[1734718725987,23.96567668,190.2,190.13,8.0723]
[1734718726293,23.96567668,190.26,190.14,0.12549]
[1734718726498,23.96567668,190.25,190.17,144.76567668]
[1734718726714,23.96567668,190.24,190.17,144.76567668]
[1734718727012,23.96567668,190.24,190.17,120.8]
[1734718727213,23.96567668,190.24,190.18,23.776884]
[1734718728220,6.3989,190.32,190.18,23.776884]
[1734718728221,23.96567668,190.25,190.18,23.776884]
[1734718728515,23.96567668,190.24,190.18,23.776884]
[1734718729221,23.96567668,190.24,190.17,133.9458]
[1734718729919,6.3989,190.32,190.17,133.9458]
[1734718729920,23.96567668,190.26,190.2,23.776884]
[1734718730303,23.96567668,190.26,190.17,157.91147668]
[1734718730814,23.96567668,190.26,190.18,23.776884]
[1734718731000,23.96567668,190.2,190.14,141.84469]
[1734718731199,23.96567668,190.22,190.14,120.8]
[1734718731413,23.96567668,190.25,190.17,23.96567668]
[1734718731611,23.96567668,190.25,190.17,24.75411372]
[1734718731813,23.96567668,190.25,190.18,13.1454]
[1734718732713,23.96567668,190.27,190.19,47.74256068]
[1734718733117,23.96567668,190.27,190.21,23.96567668]
[1734718733321,23.96567668,190.3,190.23,23.96567668]
[1734718733614,23.96567668,190.32,190.24,47.74256068]
[1734718734623,23.96567668,190.32,190.2,13.144]
[1734718734624,23.96567668,190.27,190.2,13.144]
[1734718735117,23.96567668,190.27,190.2,37.10967668]
[1734718735298,23.96567668,190.25,190.18,6.3725]
[1734718735801,23.96567668,190.23,190.18,6.3725]
[1734718736195,23.96567668,190.24,190.18,6.3725]
[1734718737025,23.96567668,190.28,190.19,60.88666068]
[1734718737212,23.96567668,190.32,190.24,23.776884]
[1734718737535,23.96567668,190.34,190.25,25.62587668]
[1734718737699,23.96567668,190.32,190.25,25.62587668]
[1734718738200,23.96567668,190.34,190.26,23.776884]
[1734718739320,23.96567668,190.34,190.27,23.96567668]
[1734718740423,23.96567668,190.38,190.31,23.96567668]